[Event "1st 4NCL International Open"]
[Site "Telford"]
[Date "2018.11.02"]
[Round "5"]
[White "Jamieson, Ian"]
[Black "Ross, Stuart"]
[Result "1-0"]
[ECO "A01"]
[WhiteElo "1947"]
[BlackElo "1608"]
[Annotator "NA"]
[PlyCount "75"]
[EventDate "2018.10.31"]
[EventType "swiss"]
[EventCountry "GBR"]
[SourceTitle "playchess.com"]
[Source "ChessBase"]
[SourceQuality "1"]
[TimeControl "5400+30"]

1. b3 {[%emt 0:00:00]} e5 {[%emt 0:00:00]} 2. Bb2 {[%emt 0:00:00]} Nc6 {[%emt 0:00:00]} 3. e3 {[%emt 0:00:00]} Nf6 {[%emt 0:00:32]} 4. Bb5 {[%emt 0:00:01]} Bd6 {[%emt 0:00:33]} 5. a3 {[%emt 0:00:51]} a6 {[%emt 0:01:50]} 6. Be2 {[%emt 0:00:12]} b5 {[%emt 0:01:12]} 7. c4 {[%emt 0:01:53]} Rb8 {[%emt 0:01:08]} 8. cxb5 {[%emt 0:05:19]} axb5 {[%emt 0:00:54]} 9. Nc3 {[%emt 0:00:34]} b4 {[%emt 0:01:47]} 10. Nb5 {[%emt 0:01:13]} bxa3 {[%emt 0:05:37]} 11. Nxd6+ {[%emt 0:00:37]} cxd6 {[%emt 0:00:30]} 12. Bxa3 {[%emt 0:00:19]} Ne4 {[%emt 0:05:46]} 13. Nf3 {[%emt 0:06:07]} Qb6 {[%emt 0:07:28]} 14. O-O {[%emt 0:04:31]} Nb4 {[%emt 0:09:41]} 15. Qb1 {[%emt 0:12:49]} Nf6 {[%emt 0:14:10]} 16. Rc1 {[%emt 0:07:46]} Ba6 {[%emt 0:06:37]} 17. Bxb4 {[%emt 0:11:24]} Bxe2 {[%emt 0:01:15]} 18. Ba5 {[%emt 0:00:13]} Qb7 {[%emt 0:02:43]} 19. Qf5 {[%emt 0:04:09]} Rc8 {[%emt 0:08:58]} 20. Nxe5 {[%emt 0:09:54]} Rxc1+ {[%emt 0:08:57]} 21. Rxc1 {[%emt 0:00:01]} O-O {[%emt 0:00:50]} 22. Nd3 {[%emt 0:09:45]} Qxb3 {[%emt 0:03:05]} 23. Nf4 {[%emt 0:00:21]} Bg4 {[%emt 0:01:02]} 24. Qb1 {[%emt 0:05:57]} Qxb1 {[%emt 0:02:28]} 25. Rxb1 {[%emt 0:00:01]} Rc8 {[%emt 0:01:59]} 26. f3 {[%emt 0:02:16]} Be6 {[%emt 0:00:36]} 27. Bc3 {[%emt 0:07:51]} Ne8 {[%emt 0:01:32]} 28. Kf2 {[%emt 0:00:34]} h6 {[%emt 0:00:26]} 29. e4 {[%emt 0:01:23]} g5 {[%emt 0:02:47]} 30. Ne2 {[%emt 0:01:46]} d5 {[%emt 0:00:37]} 31. Rb6 {[%emt 0:01:23]} dxe4 {[%emt 0:00:32]} 32. fxe4 {[%emt 0:00:02]} Kh7 {[%emt 0:01:53]} 33. h3 {[%emt 0:01:15]} Ng7 {[%emt 0:02:55]} 34. Bxg7 {[%emt 0:01:54]} Kxg7 {[%emt 0:00:03]} 35. d4 {[%emt 0:00:12]} Bc4 {[%emt 0:00:41]} 36. Ng3 {[%emt 0:00:17]} Bd3 {[%emt 0:01:14]} 37. Nf5+ {[%emt 0:00:40]} Kh7 {[%emt 0:00:34]} 38. Rxh6+ {[%emt 0:00:15]} 1-0

[Event "1st 4NCL International Open"]
[Site "Telford"]
[Date "2018.11.02"]
[Round "5"]
[White "Bennett, Dominic L"]
[Black "Paul, Nathanael"]
[Result "1-0"]
[ECO "D11"]
[WhiteElo "1933"]
[BlackElo "1890"]
[Annotator "NA"]
[PlyCount "123"]
[EventDate "2018.10.31"]
[EventType "swiss"]
[EventCountry "GBR"]
[SourceTitle "playchess.com"]
[Source "ChessBase"]
[SourceQuality "1"]
[TimeControl "5400+30"]

1. c4 {[%emt 0:00:24]} c6 {[%emt 0:00:00]} 2. Nf3 {[%emt 0:01:29]} Nf6 {[%emt 0:00:00]} 3. g3 {[%emt 0:02:48]} d5 {[%emt 0:00:13]} 4. Bg2 {[%emt 0:00:49]} Bf5 {[%emt 0:07:55]} 5. d4 {[%emt 0:08:20]} e6 {[%emt 0:15:02]} 6. O-O {[%emt 0:00:18]} Be7 {[%emt 0:08:01]} 7. Bf4 {[%emt 0:08:09]} dxc4 {[%emt 0:06:26]} 8. Nbd2 {[%emt 0:04:13]} Nbd7 {[%emt 0:02:20]} 9. Nxc4 {[%emt 0:01:14]} Nb6 {[%emt 0:02:30]} 10. Na5 {[%emt 0:01:17]} Qc8 {[%emt 0:01:34]} 11. Qb3 {[%emt 0:07:42]} O-O {[%emt 0:02:31]} 12. Rac1 {[%emt 0:00:23]} Nfd5 {[%emt 0:06:22]} 13. Bg5 {[%emt 0:10:30]} Bb4 {[%emt 0:16:59]} 14. Bd2 {[%emt 0:00:48]} Bd6 {[%emt 0:00:09]} 15. Rfe1 {[%emt 0:04:05]} Bg6 {[%emt 0:00:13]} 16. e4 {[%emt 0:07:29]} Ne7 {[%emt 0:00:41]} 17. Bb4 {[%emt 0:00:28]} Rd8 {[%emt 0:02:56]} 18. Qa3 {[%emt 0:08:11]} Bxb4 {[%emt 0:01:14]} 19. Qxb4 {[%emt 0:00:20]} Qc7 {[%emt 0:00:33]} 20. Nb3 {[%emt 0:05:01]} h6 {[%emt 0:13:10]} 21. Qa5 {[%emt 0:00:24]} Rac8 {[%emt 0:01:38]} 22. a3 {[%emt 0:02:11]} Qb8 {[%emt 0:00:52]} 23. Ne5 {[%emt 0:04:02]} Bh7 {[%emt 0:01:30]} 24. Bh3 {[%emt 0:02:42]} Rd6 {[%emt 0:00:38]} 25. Qc3 {[%emt 0:04:42]} Ng6 {[%emt 0:03:37]} 26. Nd3 {[%emt 0:01:36]} Rf8 {[%emt 0:01:18]} 27. Qa5 {[%emt 0:00:49]} Rdd8 {[%emt 0:00:39]} 28. Bg2 {[%emt 0:00:49]} Ne7 {[%emt 0:00:33]} 29. Qh5 {[%emt 0:01:16]} Nec8 {[%emt 0:00:45]} 30. Ndc5 {[%emt 0:00:37]} Nd7 {[%emt 0:01:21]} 31. Nxd7 {[%emt 0:01:53]} Rxd7 {[%emt 0:00:05]} 32. Red1 {[%emt 0:00:18]} Rfd8 {[%emt 0:01:09]} 33. f4 {[%emt 0:02:32]} Qc7 {[%emt 0:02:03]} 34. Qc5 {[%emt 0:01:09]} Qb6 {[%emt 0:00:12]} 35. Qxb6 {[%emt 0:03:54]} axb6 {[%emt 0:00:03]} 36. Kf2 {[%emt 0:01:13]} Kf8 {[%emt 0:00:56]} 37. Bf3 {[%emt 0:00:18]} Nd6 {[%emt 0:00:57]} 38. Ke3 {[%emt 0:00:48]} Nb5 {[%emt 0:00:27]} 39. g4 {[%emt 0:01:32]} f6 {[%emt 0:00:35]} 40. h4 {[%emt 0:00:36]} Bg8 {[%emt 0:00:04]} 41. e5 {[%emt 0:00:40]} fxe5 {[%emt 0:00:46]} 42. dxe5 {[%emt 0:00:28]} Bh7 {[%emt 0:00:39]} 43. Rxd7 {[%emt 0:00:47]} Rxd7 {[%emt 0:00:04]} 44. Rd1 {[%emt 0:00:10]} Rxd1 {[%emt 0:01:32]} 45. Bxd1 {[%emt 0:00:07]} Nc7 {[%emt 0:00:09]} 46. Nd4 {[%emt 0:01:47]} c5 {[%emt 0:00:14]} 47. Ne2 {[%emt 0:00:00]} Nd5+ {[%emt 0:00:00]} 48. Kf3 {[%emt 0:00:17]} Bd3 {[%emt 0:00:06]} 49. Nc3 {[%emt 0:00:40]} Nxc3 {[%emt 0:01:43]} 50. bxc3 {[%emt 0:01:09]} Bc4 {[%emt 0:00:14]} 51. Ke3 {[%emt 0:00:18]} Ke7 {[%emt 0:00:26]} 52. Bf3 {[%emt 0:00:13]} Ba6 {[%emt 0:01:10]} 53. Be2 {[%emt 0:00:45]} Bxe2 {[%emt 0:00:35]} 54. Kxe2 {[%emt 0:00:11]} g6 {[%emt 0:00:06]} 55. c4 {[%emt 0:00:57]} Kf7 {[%emt 0:00:25]} 56. a4 {[%emt 0:00:19]} Kg7 {[%emt 0:00:49]} 57. h5 {[%emt 0:00:25]} g5 {[%emt 0:00:45]} 58. Kf3 {[%emt 0:00:58]} gxf4 {[%emt 0:00:35]} 59. Kxf4 {[%emt 0:00:16]} Kf7 {[%emt 0:00:21]} 60. g5 {[%emt 0:00:49]} Kg7 {[%emt 0:00:16]} 61. gxh6+ {[%emt 0:00:18]} Kxh6 {[%emt 0:00:12]} 62. Kg4 {[%emt 0:01:20]} 1-0

[Event "1st 4NCL International Open"]
[Site "Telford"]
[Date "2018.11.02"]
[Round "5"]
[White "Jukes, Sam"]
[Black "Akeya-Price, Robert"]
[Result "1-0"]
[ECO "B14"]
[WhiteElo "1863"]
[BlackElo "1730"]
[Annotator "NA"]
[PlyCount "105"]
[EventDate "2018.10.31"]
[EventType "swiss"]
[EventCountry "GBR"]
[SourceTitle "playchess.com"]
[Source "ChessBase"]
[SourceQuality "1"]
[TimeControl "5400+30"]

1. e4 {[%emt 0:00:00]} c6 {[%emt 0:00:00]} 2. d4 {[%emt 0:00:00]} d5 {[%emt 0:00:00]} 3. exd5 {[%emt 0:00:00]} cxd5 {[%emt 0:00:08]} 4. c4 {[%emt 0:00:09]} Nf6 {[%emt 0:00:42]} 5. Nc3 {[%emt 0:00:30]} e6 {[%emt 0:00:49]} 6. Nf3 {[%emt 0:00:44]} Bb4 {[%emt 0:00:59]} 7. a3 {[%emt 0:00:44]} Bxc3+ 8. bxc3 {[%emt 0:02:36]} O-O {[%emt 0:08:54]} 9. c5 {[%emt 0:04:14]} b6 {[%emt 0:01:08]} 10. cxb6 {[%emt 0:01:27]} axb6 {[%emt 0:00:00]} 11. Bd3 {[%emt 0:00:57]} Qc7 {[%emt 0:02:06]} 12. Bd2 {[%emt 0:01:48]} Ba6 {[%emt 0:05:05]} 13. Qe2 {[%emt 0:01:14]} Ne4 {[%emt 0:01:50]} 14. Bxa6 {[%emt 0:06:51]} Rxa6 {[%emt 0:04:53]} 15. O-O {[%emt 0:02:11]} Nxc3 {[%emt 0:01:58]} 16. Qd3 {[%emt 0:02:15]} Ne4 {[%emt 0:00:29]} 17. Rfc1 {[%emt 0:09:50]} Qb7 18. Bb4 {[%emt 0:12:47]} Rc8 {[%emt 0:05:36]} 19. Rxc8+ {[%emt 0:00:00]} Qxc8 {[%emt 0:00:43]} 20. Qf1 {[%emt 0:04:31]} Ra7 {[%emt 0:07:35]} 21. Ne5 f6 {[%emt 0:13:21]} 22. Rc1 {[%emt 0:00:00]} Rc7 {[%emt 0:00:29]} 23. Rxc7 {[%emt 0:00:00]} Qxc7 {[%emt 0:00:26]} 24. f3 {[%emt 0:00:00]} Nc3 {[%emt 0:00:00]} 25. Ng4 {[%emt 0:00:00]} Na4 {[%emt 0:00:00]} 26. Qe1 {[%emt 0:00:00]} Qd7 {[%emt 0:00:00]} 27. Nxf6+ {[%emt 0:00:22]} gxf6 {[%emt 0:00:00]} 28. Qg3+ {[%emt 0:01:07]} Kf7 {[%emt 0:00:54]} 29. Qxb8 {[%emt 0:00:15]} Qe8 {[%emt 0:02:40]} 30. Qc7+ {[%emt 0:08:10]} Kg8 {[%emt 0:04:46]} 31. h4 {[%emt 0:02:16]} b5 {[%emt 0:11:40]} 32. h5 {[%emt 0:02:49]} h6 {[%emt 0:03:05]} 33. Qf4 {[%emt 0:10:48]} Kg7 {[%emt 0:01:17]} 34. g4 {[%emt 0:02:01]} e5 {[%emt 0:09:18]} 35. Qe3 {[%emt 0:00:56]} Nb2 {[%emt 0:05:52]} 36. Bd2 {[%emt 0:03:33]} Nc4 {[%emt 0:05:53]} 37. Qxh6+ {[%emt 0:00:08]} Kg8 {[%emt 0:00:10]} 38. Qxf6 {[%emt 0:01:23]} Nxd2 {[%emt 0:00:25]} 39. Qg5+ {[%emt 0:00:12]} Kh7 {[%emt 0:00:57]} 40. Qxd2 {[%emt 0:00:45]} e4 {[%emt 0:00:23]} 41. Qg5 {[%emt 0:04:05]} Qb8 {[%emt 0:03:35]} 42. Qe5 {[%emt 0:05:27]} Qg8 {[%emt 0:02:14]} 43. Qf5+ {[%emt 0:00:53]} Kh8 {[%emt 0:00:32]} 44. Qf6+ {[%emt 0:00:15]} Kh7 {[%emt 0:00:08]} 45. Qg6+ {[%emt 0:00:28]} Qxg6 {[%emt 0:00:06]} 46. hxg6+ {[%emt 0:00:04]} Kxg6 {[%emt 0:00:08]} 47. fxe4 {[%emt 0:00:08]} dxe4 {[%emt 0:00:02]} 48. Kf2 {[%emt 0:00:09]} Kg5 {[%emt 0:00:05]} 49. Ke3 {[%emt 0:00:09]} Kxg4 {[%emt 0:00:05]} 50. Kxe4 {[%emt 0:00:03]} Kg5 {[%emt 0:00:08]} 51. Ke5 {[%emt 0:00:06]} Kg6 {[%emt 0:00:17]} 52. Ke6 {[%emt 0:00:04]} Kg7 {[%emt 0:00:08]} 53. Ke7 {[%emt 0:00:30]} 1-0

[Event "1st 4NCL International Open"]
[Site "Telford"]
[Date "2018.11.02"]
[Round "5"]
[White "Ther, Mate"]
[Black "Ferrington, Nigel M"]
[Result "0-1"]
[ECO "B44"]
[WhiteElo "1759"]
[BlackElo "2130"]
[Annotator "NA"]
[PlyCount "86"]
[EventDate "2018.10.31"]
[EventType "swiss"]
[EventCountry "GBR"]
[SourceTitle "playchess.com"]
[Source "ChessBase"]
[SourceQuality "1"]
[TimeControl "5400+30"]

1. e4 {[%emt 0:00:00]} c5 {[%emt 0:01:07]} 2. Nf3 {[%emt 0:00:00]} e6 {[%emt 0:00:13]} 3. c4 {[%emt 0:00:00]} Nc6 {[%emt 0:00:24]} 4. d4 {[%emt 0:00:00]} cxd4 {[%emt 0:00:07]} 5. Nxd4 {[%emt 0:00:00]} Nf6 {[%emt 0:00:10]} 6. Nc3 {[%emt 0:00:00]} Bb4 {[%emt 0:00:19]} 7. Nxc6 {[%emt 0:00:12]} dxc6 {[%emt 0:03:03]} 8. Qxd8+ {[%emt 0:02:09]} Kxd8 {[%emt 0:00:22]} 9. Bd3 {[%emt 0:00:54]} e5 {[%emt 0:01:15]} 10. Bd2 {[%emt 0:00:26]} Ke7 {[%emt 0:01:44]} 11. a3 {[%emt 0:00:11]} Rd8 {[%emt 0:01:11]} 12. Bc2 {[%emt 0:01:22]} Bc5 {[%emt 0:00:33]} 13. Nd1 {[%emt 0:01:45]} Be6 {[%emt 0:01:20]} 14. b3 {[%emt 0:01:23]} Rd7 {[%emt 0:01:55]} 15. Bc3 {[%emt 0:00:44]} Bd4 {[%emt 0:00:24]} 16. O-O {[%emt 0:00:39]} Rad8 {[%emt 0:01:01]} 17. Rc1 {[%emt 0:01:41]} Bxc3 {[%emt 0:00:51]} 18. Nxc3 {[%emt 0:00:07]} Ne8 {[%emt 0:02:46]} 19. Rfd1 {[%emt 0:02:10]} Nc7 {[%emt 0:00:29]} 20. Rxd7+ {[%emt 0:01:39]} Rxd7 {[%emt 0:00:04]} 21. Kf1 {[%emt 0:00:53]} f6 {[%emt 0:00:37]} 22. Ke2 {[%emt 0:00:23]} Bg4+ {[%emt 0:00:46]} 23. f3 {[%emt 0:01:10]} Bh5 {[%emt 0:00:08]} 24. Ke3 {[%emt 0:00:34]} Ne6 {[%emt 0:00:20]} 25. Ne2 {[%emt 0:00:14]} Nd4 {[%emt 0:05:42]} 26. Nxd4 {[%emt 0:00:24]} Rxd4 {[%emt 0:00:14]} 27. Rd1 {[%emt 0:05:22]} c5 {[%emt 0:01:25]} 28. Rd3 {[%emt 0:01:42]} Kd6 {[%emt 0:00:26]} 29. Kd2 {[%emt 0:00:10]} Be8 {[%emt 0:01:00]} 30. b4 {[%emt 0:01:40]} Bf7 {[%emt 0:06:17]} 31. Bb3 {[%emt 0:00:38]} b6 {[%emt 0:08:07]} 32. b5 {[%emt 0:05:57]} Be6 {[%emt 0:00:35]} 33. a4 {[%emt 0:00:51]} f5 {[%emt 0:02:26]} 34. Ke3 {[%emt 0:00:37]} fxe4 {[%emt 0:01:18]} 35. fxe4 {[%emt 0:00:31]} Bf7 {[%emt 0:04:25]} 36. Rc3 {[%emt 0:01:28]} Ke7 {[%emt 0:04:20]} 37. h3 {[%emt 0:04:18]} Kf6 {[%emt 0:01:03]} 38. g3 {[%emt 0:00:11]} Kg5 {[%emt 0:01:37]} 39. Kf3 {[%emt 0:02:11]} Be6 {[%emt 0:03:36]} 40. h4+ {[%emt 0:03:12]} Kh5 {[%emt 0:00:48]} 41. Ba2 {[%emt 0:01:36]} Rd2 {[%emt 0:03:00]} 42. Bb3 {[%emt 0:01:16]} Bg4+ {[%emt 0:00:28]} 43. Ke3 {[%emt 0:00:28]} Rg2 {[%emt 0:01:41]} 0-1

[Event "1st 4NCL International Open"]
[Site "Telford"]
[Date "2018.11.03"]
[Round "6"]
[White "Mihalik, Agoston"]
[Black "Stepanyan, Henrik"]
[Result "1-0"]
[ECO "C45"]
[WhiteElo "2223"]
[BlackElo "2158"]
[Annotator "NA"]
[PlyCount "135"]
[EventDate "2018.10.31"]
[EventType "swiss"]
[EventCountry "GBR"]
[SourceTitle "playchess.com"]
[Source "ChessBase"]
[SourceQuality "1"]
[TimeControl "5400+30"]

1. e4 {[%emt 0:00:03]} e5 {[%emt 0:00:00]} 2. Nf3 {[%emt 0:00:05]} Nc6 {[%emt 0:00:00]} 3. d4 {[%emt 0:00:18]} exd4 {[%emt 0:00:00]} 4. Nxd4 {[%emt 0:00:05]} Bc5 {[%emt 0:00:48]} 5. Nb3 {[%emt 0:00:44]} Bb6 {[%emt 0:00:09]} 6. Nc3 {[%emt 0:00:11]} Qf6 {[%emt 0:10:20]} 7. Qe2 {[%emt 0:03:48]} Nge7 {[%emt 0:03:10]} 8. Be3 {[%emt 0:01:10]} Bxe3 {[%emt 0:08:26]} 9. Qxe3 {[%emt 0:00:13]} a6 {[%emt 0:00:04]} 10. O-O-O {[%emt 0:03:27]} O-O {[%emt 0:01:18]} 11. f4 {[%emt 0:06:32]} d6 {[%emt 0:00:21]} 12. Be2 {[%emt 0:01:56]} Qh4 {[%emt 0:09:35]} 13. g3 {[%emt 0:07:41]} Qh3 {[%emt 0:01:00]} 14. Nd5 {[%emt 0:00:20]} Nxd5 {[%emt 0:02:26]} 15. exd5 {[%emt 0:00:34]} Na7 {[%emt 0:01:57]} 16. Nd4 {[%emt 0:05:21]} c6 {[%emt 0:09:31]} 17. dxc6 {[%emt 0:05:01]} bxc6 {[%emt 0:00:59]} 18. Nf3 {[%emt 0:09:57]} Qf5 {[%emt 0:07:18]} 19. Rxd6 {[%emt 0:13:00]} Be6 {[%emt 0:01:17]} 20. Qe5 {[%emt 0:05:42]} Qxe5 {[%emt 0:06:19]} 21. Nxe5 {[%emt 0:00:38]} Bd5 {[%emt 0:00:08]} 22. Bf3 {[%emt 0:00:46]} Nc8 {[%emt 0:05:01]} 23. Rd7 {[%emt 0:00:23]} Nb6 {[%emt 0:00:50]} 24. Rb7 {[%emt 0:00:25]} Bxf3 {[%emt 0:03:25]} 25. Nxf3 {[%emt 0:00:07]} Rfb8 {[%emt 0:01:35]} 26. Rxb8+ {[%emt 0:01:04]} Rxb8 {[%emt 0:00:01]} 27. Ne5 {[%emt 0:00:15]} Rc8 {[%emt 0:02:19]} 28. Rd1 {[%emt 0:00:26]} f6 {[%emt 0:00:04]} 29. Nd7 {[%emt 0:01:31]} Nc4 {[%emt 0:02:38]} 30. Nc5 {[%emt 0:04:04]} g5 {[%emt 0:04:33]} 31. fxg5 {[%emt 0:13:20]} fxg5 {[%emt 0:00:04]} 32. Ne4 {[%emt 0:00:23]} Rf8 {[%emt 0:03:55]} 33. b3 {[%emt 0:01:26]} Ne3 {[%emt 0:00:33]} 34. Re1 {[%emt 0:00:34]} Rf1 {[%emt 0:03:50]} 35. Rxf1 {[%emt 0:01:13]} Nxf1 {[%emt 0:00:01]} 36. Nxg5 {[%emt 0:02:06]} Nxh2 {[%emt 0:00:07]} 37. Ne4 {[%emt 0:01:23]} Kg7 {[%emt 0:02:45]} 38. Kd2 {[%emt 0:01:31]} Kg6 {[%emt 0:01:27]} 39. Ke2 Kf5 {[%emt 0:00:00]} 40. Nc5 {[%emt 0:01:05]} Kg4 {[%emt 0:03:09]} 41. Kf2 {[%emt 0:00:47]} Nf3 {[%emt 0:00:42]} 42. Nxa6 {[%emt 0:00:31]} Nd4 {[%emt 0:00:35]} 43. Nb4 {[%emt 0:00:25]} c5 {[%emt 0:00:46]} 44. Nd3 {[%emt 0:00:06]} Nxc2 {[%emt 0:00:44]} 45. Nxc5 {[%emt 0:00:08]} Na3 {[%emt 0:02:01]} 46. b4 {[%emt 0:00:38]} h5 {[%emt 0:00:04]} 47. Ne4 {[%emt 0:00:35]} Kf5 {[%emt 0:00:21]} 48. Nc3 {[%emt 0:00:16]} Ke5 {[%emt 0:00:12]} 49. Ne2 {[%emt 0:03:47]} Ke4 {[%emt 0:01:33]} 50. Nc3+ {[%emt 0:02:15]} Kd4 {[%emt 0:01:23]} 51. b5 {[%emt 0:00:42]} Nc4 {[%emt 0:00:59]} 52. Ne2+ {[%emt 0:01:19]} Kc5 {[%emt 0:00:18]} 53. Nf4 {[%emt 0:00:13]} Kxb5 {[%emt 0:00:12]} 54. Nxh5 {[%emt 0:00:03]} Nd6 {[%emt 0:03:13]} 55. Ke2 {[%emt 0:01:36]} Ka4 {[%emt 0:00:05]} 56. g4 {[%emt 0:00:19]} Nf7 {[%emt 0:00:21]} 57. Ke3 {[%emt 0:00:32]} Ka3 {[%emt 0:00:07]} 58. Ke4 {[%emt 0:00:49]} Kxa2 {[%emt 0:00:03]} 59. Kd5 {[%emt 0:00:35]} Kb3 {[%emt 0:01:08]} 60. Nf4 {[%emt 0:01:14]} Kc3 {[%emt 0:00:54]} 61. Nh3 {[%emt 0:00:33]} Nh6 {[%emt 0:01:13]} 62. g5 {[%emt 0:00:12]} Nf5 {[%emt 0:00:31]} 63. Nf4 {[%emt 0:02:20]} Nh4 {[%emt 0:00:32]} 64. Ke4 {[%emt 0:00:59]} Kc4 {[%emt 0:00:50]} 65. Ng2 {[%emt 0:00:18]} Ng6 {[%emt 0:00:02]} 66. Kf5 {[%emt 0:00:06]} Nf8 {[%emt 0:00:31]} 67. Nf4 {[%emt 0:00:15]} Kb5 {[%emt 0:02:13]} 68. Ne6 {[%emt 0:00:13]} 1-0

[Event "1st 4NCL International Open"]
[Site "Telford"]
[Date "2018.11.03"]
[Round "6"]
[White "Mason, Donald J"]
[Black "Ther, Mate"]
[Result "1-0"]
[ECO "C54"]
[WhiteElo "2165"]
[BlackElo "1759"]
[Annotator "NA"]
[PlyCount "49"]
[EventDate "2018.10.31"]
[EventType "swiss"]
[EventCountry "GBR"]
[SourceTitle "playchess.com"]
[Source "ChessBase"]
[SourceQuality "1"]
[TimeControl "5400+30"]

1. e4 {[%emt 0:00:00]} e5 {[%emt 0:00:00]} 2. Nf3 {[%emt 0:00:00]} Nc6 {[%emt 0:00:03]} 3. Bc4 {[%emt 0:00:00]} Bc5 {[%emt 0:00:06]} 4. c3 {[%emt 0:00:05]} Nf6 {[%emt 0:00:06]} 5. d3 {[%emt 0:00:07]} O-O {[%emt 0:00:13]} 6. Bg5 {[%emt 0:00:09]} d6 {[%emt 0:00:27]} 7. b4 {[%emt 0:09:29]} Bb6 {[%emt 0:00:08]} 8. a4 {[%emt 0:00:08]} a5 {[%emt 0:00:46]} 9. b5 {[%emt 0:01:02]} Ne7 {[%emt 0:07:38]} 10. Nbd2 {[%emt 0:13:32]} c6 {[%emt 0:03:04]} 11. O-O {[%emt 0:12:11]} d5 {[%emt 0:00:40]} 12. Bb3 {[%emt 0:02:28]} Ng6 {[%emt 0:01:43]} 13. d4 {[%emt 0:06:22]} Bg4 {[%emt 0:07:33]} 14. exd5 {[%emt 0:06:24]} cxd5 {[%emt 0:01:18]} 15. h3 {[%emt 0:06:47]} Bxf3 {[%emt 0:00:33]} 16. Nxf3 {[%emt 0:04:50]} e4 {[%emt 0:01:18]} 17. Ne5 {[%emt 0:00:23]} Qd6 {[%emt 0:02:52]} 18. Bxf6 {[%emt 0:06:28]} gxf6 {[%emt 0:00:30]} 19. Ng4 {[%emt 0:00:07]} Kg7 {[%emt 0:07:53]} 20. Ne3 {[%emt 0:01:38]} Ne7 {[%emt 0:01:19]} 21. Qh5 {[%emt 0:06:57]} Rad8 {[%emt 0:00:56]} 22. Bxd5 {[%emt 0:05:35]} Bc7 {[%emt 0:02:47]} 23. f4 {[%emt 0:03:11]} exf3 {[%emt 0:01:48]} 24. Rxf3 {[%emt 0:00:08]} Kh8 {[%emt 0:14:33]} 25. Be4 {[%emt 0:03:56]} 1-0

[Event "1st 4NCL International Open"]
[Site "Telford"]
[Date "2018.11.03"]
[Round "6"]
[White "Munshi, Aditya"]
[Black "Jamieson, Ian"]
[Result "1-0"]
[ECO "C07"]
[WhiteElo "2117"]
[BlackElo "1947"]
[Annotator "NA"]
[PlyCount "39"]
[EventDate "2018.10.31"]
[EventType "swiss"]
[EventCountry "GBR"]
[SourceTitle "playchess.com"]
[Source "ChessBase"]
[SourceQuality "1"]
[TimeControl "5400+30"]

1. e4 {[%emt 0:00:01]} e6 {[%emt 0:00:00]} 2. d4 {[%emt 0:00:12]} d5 {[%emt 0:00:07]} 3. Nd2 {[%emt 0:00:26]} c5 {[%emt 0:00:10]} 4. exd5 {[%emt 0:00:19]} Qxd5 {[%emt 0:00:03]} 5. Ngf3 {[%emt 0:00:06]} cxd4 {[%emt 0:00:38]} 6. Bc4 {[%emt 0:00:21]} Qd6 {[%emt 0:00:01]} 7. O-O {[%emt 0:00:07]} Nf6 {[%emt 0:00:20]} 8. Nb3 {[%emt 0:00:05]} Nc6 {[%emt 0:00:40]} 9. Nbxd4 {[%emt 0:00:11]} Nxd4 {[%emt 0:00:03]} 10. Nxd4 {[%emt 0:00:21]} h6 {[%emt 0:06:53]} 11. Nb5 {[%emt 0:06:30]} Qb8 {[%emt 0:07:12]} 12. Qf3 {[%emt 0:03:05]} e5 {[%emt 0:08:31]} 13. Qb3 {[%emt 0:08:12]} a6 {[%emt 0:08:43]} 14. Bxf7+ {[%emt 0:00:41]} Kd8 {[%emt 0:00:50]} 15. Be3 {[%emt 0:13:44]} b6 {[%emt 0:05:16]} 16. Nc3 {[%emt 0:27:23]} Bc5 {[%emt 0:03:20]} 17. Nd5 {[%emt 0:01:05]} Nd7 {[%emt 0:08:16]} 18. Rad1 {[%emt 0:01:44]} Bxe3 {[%emt 0:00:25]} 19. fxe3 {[%emt 0:02:04]} b5 {[%emt 0:00:37]} 20. Qb4 {[%emt 0:00:45]} 1-0

[Event "1st 4NCL International Open"]
[Site "Telford"]
[Date "2018.11.03"]
[Round "6"]
[White "White, Stuart A"]
[Black "Bennett, Dominic L"]
[Result "1/2-1/2"]
[ECO "E54"]
[WhiteElo "2113"]
[BlackElo "1933"]
[Annotator "NA"]
[PlyCount "79"]
[EventDate "2018.10.31"]
[EventType "swiss"]
[EventCountry "GBR"]
[SourceTitle "playchess.com"]
[Source "ChessBase"]
[SourceQuality "1"]
[TimeControl "5400+30"]

1. d4 {[%emt 0:00:00]} Nf6 {[%emt 0:03:11]} 2. c4 {[%emt 0:00:42]} e6 {[%emt 0:03:35]} 3. Nc3 {[%emt 0:00:26]} Bb4 {[%emt 0:01:21]} 4. e3 {[%emt 0:00:10]} O-O {[%emt 0:00:33]} 5. Nf3 {[%emt 0:00:18]} c5 {[%emt 0:01:09]} 6. Bd3 {[%emt 0:00:39]} d5 {[%emt 0:01:09]} 7. O-O {[%emt 0:01:14]} cxd4 {[%emt 0:00:50]} 8. exd4 {[%emt 0:01:01]} dxc4 {[%emt 0:00:45]} 9. Bxc4 {[%emt 0:00:17]} b6 {[%emt 0:02:39]} 10. Bg5 {[%emt 0:00:12]} Bb7 {[%emt 0:01:51]} 11. Qe2 {[%emt 0:00:53]} Bxc3 {[%emt 0:08:01]} 12. bxc3 {[%emt 0:00:07]} Nc6 {[%emt 0:05:16]} 13. Rfd1 {[%emt 0:07:33]} Na5 {[%emt 0:01:04]} 14. Bd3 {[%emt 0:01:04]} Re8 {[%emt 0:19:00]} 15. c4 {[%emt 0:05:02]} Rc8 {[%emt 0:02:12]} 16. Rac1 {[%emt 0:07:33]} Kf8 {[%emt 0:03:45]} 17. Bxh7 {[%emt 0:19:58]} Bxf3 {[%emt 0:03:35]} 18. Qxf3 {[%emt 0:02:09]} Rxc4 {[%emt 0:03:17]} 19. Rxc4 {[%emt 0:09:06]} Nxc4 {[%emt 0:00:38]} 20. Be4 {[%emt 0:02:35]} Kg8 {[%emt 0:06:40]} 21. Bc6 {[%emt 0:04:14]} Rf8 {[%emt 0:00:55]} 22. Qe2 {[%emt 0:01:26]} Nd6 {[%emt 0:05:26]} 23. d5 {[%emt 0:08:25]} exd5 {[%emt 0:06:23]} 24. Bxd5 {[%emt 0:00:39]} Re8 {[%emt 0:00:42]} 25. Qd3 {[%emt 0:02:02]} Qe7 {[%emt 0:01:38]} 26. h4 {[%emt 0:05:50]} Rd8 {[%emt 0:04:14]} 27. Bb3 {[%emt 0:07:02]} Rd7 {[%emt 0:05:40]} 28. Rc1 {[%emt 0:03:39]} Qe5 {[%emt 0:01:24]} 29. Bc2 {[%emt 0:05:05]} Nde4 {[%emt 0:01:54]} 30. Bxf6 {[%emt 0:01:12]} Nxf6 {[%emt 0:00:23]} 31. Qf3 {[%emt 0:00:44]} g6 {[%emt 0:01:06]} 32. Bb3 {[%emt 0:00:32]} Kg7 {[%emt 0:01:35]} 33. g3 {[%emt 0:00:39]} Re7 {[%emt 0:01:13]} 34. Kg2 {[%emt 0:00:51]} Qa5 {[%emt 0:01:25]} 35. Rc6 {[%emt 0:01:37]} Qe5 {[%emt 0:00:26]} 36. Qc3 {[%emt 0:01:30]} Qe4+ {[%emt 0:00:42]} 37. Qf3 {[%emt 0:00:02]} Qe5 {[%emt 0:00:18]} 38. Rc3 {[%emt 0:00:35]} Qe1 {[%emt 0:01:03]} 39. Rc2 {[%emt 0:00:59]} Qe5 {[%emt 0:00:34]} 40. Rc1 {[%emt 0:00:50]} 1/2-1/2